[Event "MČR 2022 rapid"]
[Site "Turnov, Czech Republic"]
[Date "2022.09.11"]
[Round "6.3"]
[White "Skácelík, Petr"]
[Black "Neuman, Petr"]
[Result "0-1"]
[TimeControl "2x 15 min + 5s/move"]
[WhiteElo "2128"]
[BlackElo "2416"]

1. d4 {[%clk 00:15:07]} d6 {[%clk 00:15:09]} {[%emt 00:00:08]} 2. c4 {[%clk
00:15:10]} e5 {[%clk 00:15:13]} 3. Nf3 {[%clk 00:15:14]} e4 {[%clk 00:15:17]}
{[%emt 00:00:05]} 4. Ng5 {[%clk 00:15:18]} f5 {[%clk 00:15:20]} 5. g3 {[%clk
00:15:22]} Be7 {[%clk 00:15:22]} {[%emt 00:00:04]} 6. h4 {[%clk 00:15:22]}
{[%emt 00:00:05]} Nf6 {[%clk 00:15:24]} 7. Nc3 {[%clk 00:15:24]} {[%emt
00:00:05]} c6 {[%clk 00:15:28]} 8. d5 {[%clk 00:15:27]} {[%emt 00:00:04]} Na6
{[%clk 00:15:28]} {[%emt 00:00:05]} 9. Bg2 {[%clk 00:15:27]} {[%emt 00:00:05]}
Nc7 {[%clk 00:15:31]} 10. O-O {[%clk 00:15:16]} {[%emt 00:00:15]} O-O {[%clk
00:15:21]} {[%emt 00:00:13]} 11. Nh3 {[%clk 00:15:14]} {[%emt 00:00:08]} Ng4
{[%clk 00:14:48]} {[%emt 00:00:38]} 12. f3 {[%clk 00:13:23]} {[%emt 00:01:57]}
exf3 {[%clk 00:14:39]} {[%emt 00:00:14]} 13. exf3 {[%clk 00:13:22]} {[%emt
00:00:06]} Ne5 {[%clk 00:14:42]} {[%emt 00:00:04]} 14. b3 {[%clk 00:13:17]}
{[%emt 00:00:10]} Bf6 {[%clk 00:14:43]} {[%emt 00:00:05]} 15. Bb2 {[%clk
00:13:17]} {[%emt 00:00:05]} c5 {[%clk 00:14:19]} {[%emt 00:00:25]} 16. Nf4
{[%clk 00:12:32]} {[%emt 00:00:50]} g6 {[%clk 00:14:19]} {[%emt 00:00:08]} 17.
Rb1 {[%clk 00:11:52]} {[%emt 00:00:41]} Qe7 {[%clk 00:14:18]} {[%emt 00:00:05]}
18. Re1 {[%clk 00:11:48]} {[%emt 00:00:10]} Qg7 {[%clk 00:14:22]} 19. Qc2
{[%clk 00:11:14]} {[%emt 00:00:42]} Re8 {[%clk 00:14:11]} {[%emt 00:00:14]} 20.
Nd3 {[%clk 00:08:55]} {[%emt 00:02:24]} Bd7 {[%clk 00:14:11]} {[%emt 00:00:07]}
21. Nxe5 {[%clk 00:08:16]} {[%emt 00:00:47]} Bxe5 {[%clk 00:13:53]} {[%emt
00:00:18]} 22. f4 {[%clk 00:07:56]} {[%emt 00:00:29]} Bd4+ {[%clk 00:13:56]} 23.
Kh2 {[%clk 00:07:56]} {[%emt 00:00:05]} h6 {[%clk 00:13:55]} {[%emt 00:00:06]}
24. Bf3 {[%clk 00:05:41]} {[%emt 00:02:18]} a6 {[%clk 00:12:43]} {[%emt
00:01:17]} 25. Re2 {[%clk 00:04:46]} {[%emt 00:01:00]} Rxe2+ {[%clk 00:12:14]}
{[%emt 00:00:37]} 26. Nxe2 {[%clk 00:04:50]} Bxb2 {[%clk 00:12:17]} {[%emt
00:00:04]} 27. Qxb2 {[%clk 00:04:49]} {[%emt 00:00:04]} Qe7 {[%clk 00:11:56]}
{[%emt 00:00:25]} 28. Qd2 {[%clk 00:04:43]} {[%emt 00:00:10]} Re8 {[%clk
00:11:39]} {[%emt 00:00:26]} 29. Kg2 {[%clk 00:04:45]} b5 {[%clk 00:11:24]}
{[%emt 00:00:19]} 30. Kf2 {[%clk 00:04:40]} {[%emt 00:00:10]} b4 {[%clk
00:11:14]} {[%emt 00:00:15]} 31. Re1 {[%clk 00:04:26]} {[%emt 00:00:19]} a5
{[%clk 00:11:01]} {[%emt 00:00:18]} 32. Nc1 {[%clk 00:04:10]} {[%emt 00:00:20]}
Qf6 {[%clk 00:11:04]} {[%emt 00:00:05]} 33. Rxe8+ {[%clk 00:04:14]} Nxe8 {[%clk
00:11:06]} {[%emt 00:00:05]} 34. Nd3 {[%clk 00:04:03]} {[%emt 00:00:12]} a4
{[%clk 00:10:09]} {[%emt 00:01:07]} 35. Qb2 {[%clk 00:03:55]} {[%emt 00:00:10]}
Qe7 {[%clk 00:09:58]} {[%emt 00:00:15]} 36. Qe2 {[%clk 00:03:57]} {[%emt
00:00:05]} Qg7 {[%clk 00:09:46]} {[%emt 00:00:15]} 37. Qb2 {[%clk 00:04:01]}
Nf6 {[%clk 00:09:41]} {[%emt 00:00:23]} 38. Kg2 {[%clk 00:03:49]} {[%emt
00:00:08]} Qe7 {[%clk 00:09:11]} {[%emt 00:00:31]} 39. Nf2 {[%clk 00:03:34]}
{[%emt 00:00:21]} Kf7 {[%clk 00:09:00]} {[%emt 00:00:16]} 40. Qe2 {[%clk
00:03:33]} {[%emt 00:00:06]} Qd8 {[%clk 00:09:02]} {[%emt 00:00:06]} 41. Qe3
{[%clk 00:03:23]} {[%emt 00:00:13]} axb3 {[%clk 00:09:01]} {[%emt 00:00:05]} 42.
axb3 {[%clk 00:03:27]} Qa5 {[%clk 00:08:59]} {[%emt 00:00:08]} 43. Bd1 {[%clk
00:02:41]} {[%emt 00:00:49]} Qa2 {[%clk 00:08:53]} {[%emt 00:00:12]} 44. Qe2
{[%clk 00:02:43]} {[%emt 00:00:07]} Qa1 {[%clk 00:08:42]} {[%emt 00:00:12]} 45.
Bc2 {[%clk 00:02:47]} Qc3 {[%clk 00:08:34]} {[%emt 00:00:14]} 46. Qd3 {[%clk
00:02:50]} Qb2 {[%clk 00:08:08]} {[%emt 00:00:33]} 47. Qd1 {[%clk 00:02:49]}
{[%emt 00:00:06]} Ng4 {[%clk 00:07:10]} {[%emt 00:01:13]} 48. Kf3 {[%clk
00:02:31]} {[%emt 00:00:12]} Qc3+ {[%clk 00:06:50]} {[%emt 00:00:26]} 49. Qd3
{[%clk 00:02:35]} Qe1 {[%clk 00:06:37]} {[%emt 00:00:19]} 50. Qe2 {[%clk
00:02:32]} {[%emt 00:00:08]} Qg1 {[%clk 00:05:23]} {[%emt 00:01:24]} 51. h5
{[%clk 00:01:17]} {[%emt 00:01:15]} Nh2+ {[%clk 00:05:18]} {[%emt 00:00:09]} 52.
Ke3 {[%clk 00:01:21]} Qxg3+ {[%clk 00:05:22]} {[%emt 00:00:06]} 53. Kd2 {[%clk
00:01:25]} Qxf4+ {[%clk 00:05:21]} {[%emt 00:00:06]} 54. Kd1 {[%clk 00:01:29]}
g5 {[%clk 00:05:05]} {[%emt 00:00:19]} 55. Bd3 {[%clk 00:01:24]} {[%emt
00:00:19]} Qf3 {[%clk 00:04:52]} {[%emt 00:00:13]} 56. Kd2 {[%clk 00:01:20]}
{[%emt 00:00:11]} Qxe2+ {[%clk 00:04:54]} 57. Kxe2 {[%clk 00:01:24]} Kf6 {[%clk
00:04:52]} {[%emt 00:00:13]} 58. Nd1 {[%clk 00:01:01]} {[%emt 00:00:21]} Ng4
{[%clk 00:04:49]} {[%emt 00:00:09]} 59. Nb2 {[%clk 00:00:55]} {[%emt 00:00:10]}
Be8 {[%clk 00:04:47]} {[%emt 00:00:06]} 0-1

[Event "MČR 2022 rapid"]
[Site "Turnov, Czech Republic"]
[Date "2022.09.11"]
[Round "6.4"]
[White "Klement, Lukáš"]
[Black "Kredl, Karel"]
[Result "0-1"]
[TimeControl "2x 15 min + 5s/move"]
[WhiteElo "2264"]
[BlackElo "2134"]

1. d4 {[%clk 00:15:07]} {[%emt 00:00:13]} Nf6 {[%clk 00:15:07]} 2. c4 {[%clk
00:15:11]} e6 {[%clk 00:15:10]} 3. Nc3 {[%clk 00:15:00]} {[%emt 00:00:13]} Bb4
{[%clk 00:15:12]} {[%emt 00:00:05]} 4. e3 {[%clk 00:15:02]} {[%emt 00:00:04]}
O-O {[%clk 00:15:05]} {[%emt 00:00:08]} 5. Nge2 {[%clk 00:15:05]} {[%emt
00:00:06]} d5 {[%clk 00:15:02]} {[%emt 00:00:06]} 6. a3 {[%clk 00:15:01]}
{[%emt 00:00:08]} Bd6 {[%clk 00:15:02]} {[%emt 00:00:05]} 7. Ng3 {[%clk
00:14:28]} {[%emt 00:00:37]} c6 {[%clk 00:14:56]} {[%emt 00:00:17]} 8. Be2
{[%clk 00:13:11]} {[%emt 00:01:18]} Nbd7 {[%clk 00:14:54]} {[%emt 00:00:06]} 9.
Qc2 {[%clk 00:09:58]} {[%emt 00:03:18]} dxc4 {[%clk 00:14:19]} {[%emt
00:00:40]} 10. Bxc4 {[%clk 00:08:59]} {[%emt 00:01:10]} e5 {[%clk 00:13:44]}
{[%emt 00:00:39]} 11. dxe5 {[%clk 00:08:34]} {[%emt 00:00:26]} Nxe5 {[%clk
00:13:21]} {[%emt 00:00:27]} 12. Be2 {[%clk 00:08:36]} {[%emt 00:00:06]} Be6
{[%clk 00:12:18]} {[%emt 00:01:05]} 13. f4 {[%clk 00:06:45]} {[%emt 00:02:04]}
Ned7 {[%clk 00:09:26]} {[%emt 00:02:52]} 14. f5 {[%clk 00:05:30]} {[%emt
00:01:20]} Bxg3+ {[%clk 00:08:43]} {[%emt 00:00:52]} 15. hxg3 {[%clk 00:05:33]}
Qc7 {[%clk 00:08:30]} {[%emt 00:00:15]} 16. Rh3 {[%clk 00:03:48]} {[%emt
00:01:49]} Bd5 {[%clk 00:08:03]} {[%emt 00:00:41]} 17. e4 {[%clk 00:03:45]} Qb6
{[%clk 00:07:57]} {[%emt 00:00:16]} 18. Rh1 {[%clk 00:03:12]} {[%emt 00:00:33]}
Bb3 {[%clk 00:07:41]} {[%emt 00:00:25]} 19. Qd3 {[%clk 00:02:51]} {[%emt
00:00:21]} Rfe8 {[%clk 00:06:39]} {[%emt 00:01:07]} 20. Be3 {[%clk 00:02:44]}
{[%emt 00:00:12]} Qa5 {[%clk 00:06:05]} {[%emt 00:00:39]} 21. Bf3 {[%clk
00:02:01]} {[%emt 00:00:50]} Rad8 {[%clk 00:05:54]} {[%emt 00:00:15]} 22. Kf2
{[%clk 00:01:30]} {[%emt 00:00:40]} Ne5 {[%clk 00:05:40]} {[%emt 00:00:14]} 23.
Qe2 {[%clk 00:01:17]} {[%emt 00:00:17]} Bc4 {[%clk 00:05:07]} {[%emt 00:00:42]}
24. Qc2 {[%clk 00:01:10]} {[%emt 00:00:06]} Neg4+ {[%clk 00:04:48]} {[%emt
00:00:28]} 25. Bxg4 {[%clk 00:01:13]} Nxg4+ {[%clk 00:04:52]} {[%emt 00:00:05]}
26. Kf3 {[%clk 00:01:14]} {[%emt 00:00:07]} Nxe3 {[%clk 00:04:42]} {[%emt
00:00:10]} 27. Kxe3 {[%clk 00:01:18]} Qxf5 {[%clk 00:04:39]} {[%emt 00:00:09]}
28. Rad1 {[%clk 00:01:12]} {[%emt 00:00:11]} Qg5+ {[%clk 00:04:22]} {[%emt
00:00:22]} 29. Kf2 {[%clk 00:00:57]} {[%emt 00:00:19]} Qc5+ {[%clk 00:04:13]}
{[%emt 00:00:20]} 30. Kf3 {[%clk 00:00:53]} {[%emt 00:00:08]} Be6 {[%clk
00:04:03]} {[%emt 00:00:09]} 31. Rxd8 {[%clk 00:00:50]} {[%emt 00:00:09]} Rxd8
{[%clk 00:04:07]} 32. Rd1 {[%clk 00:00:53]} {[%emt 00:00:06]} Qh5+ {[%clk
00:03:35]} {[%emt 00:00:33]} 33. Kf2 {[%clk 00:00:56]} Qc5+ {[%clk 00:03:27]}
{[%emt 00:00:16]} 34. Kf3 {[%clk 00:00:54]} {[%emt 00:00:06]} Qh5+ {[%clk
00:03:21]} {[%emt 00:00:15]} 35. Kf2 {[%clk 00:00:59]} Rxd1 {[%clk 00:03:11]}
{[%emt 00:00:12]} 36. Nxd1 {[%clk 00:01:00]} {[%emt 00:00:04]} Qe5 {[%clk
00:02:57]} {[%emt 00:00:22]} 37. Nc3 {[%clk 00:00:59]} {[%emt 00:00:05]} Qd4+
{[%clk 00:02:53]} {[%emt 00:00:06]} 38. Kf3 {[%clk 00:00:54]} {[%emt 00:00:19]}
h5 {[%clk 00:02:56]} 39. Kf4 {[%clk 00:00:39]} {[%emt 00:00:12]} f6 {[%clk
00:02:49]} {[%emt 00:00:13]} 40. g4 {[%clk 00:00:38]} {[%emt 00:00:07]} Qe5+
{[%clk 00:02:30]} {[%emt 00:00:24]} 41. Kf3 {[%clk 00:00:37]} {[%emt 00:00:05]}
hxg4+ {[%clk 00:02:23]} {[%emt 00:00:12]} 42. Kf2 {[%clk 00:00:25]} {[%emt
00:00:17]} Qd4+ {[%emt 00:00:14]} 43. Kg3 {[%clk 00:00:21]} Qe3+ {[%clk
00:02:16]} {[%emt 00:00:17]} 44. Kh4 {[%clk 00:00:21]} Qg1 {[%clk 00:02:01]}
{[%emt 00:00:20]} 45. Kg3 {[%clk 00:00:23]} {[%emt 00:00:05]} Qe1+ {[%clk
00:02:00]} {[%emt 00:00:05]} 46. Qf2 {[%clk 00:00:27]} Qc1 {[%clk 00:01:50]}
{[%emt 00:00:24]} 47. Qxa7 {[%clk 00:00:08]} {[%emt 00:00:15]} Qxb2 {[%clk
00:01:46]} {[%emt 00:00:08]} 48. Qc5 {[%clk 00:00:10]} {[%emt 00:00:06]} Qd2
{[%clk 00:01:40]} {[%emt 00:00:09]} 49. Na4 {[%clk 00:00:09]} {[%emt 00:00:05]}
Qe1+ {[%clk 00:01:26]} {[%emt 00:00:19]} 50. Kh2 {[%clk 00:00:06]} {[%emt
00:00:08]} g3# {[%clk 00:01:25]} {[%emt 00:00:06]} 0-1

[Event "MČR 2022 rapid"]
[Site "Turnov, Czech Republic"]
[Date "2022.09.11"]
[Round "6.5"]
[White "Plát, Vojtěch"]
[Black "Doležal, Radoslav"]
[Result "1-0"]
[TimeControl "2x 15 min + 5s/move"]
[WhiteElo "2563"]
[BlackElo "2283"]

1. d4 {[%clk 00:15:01]} Nf6 {[%clk 00:15:01]} 2. c4 {[%clk 00:15:04]} {[%emt
00:00:05]} e6 {[%clk 00:15:05]} 3. Nc3 {[%clk 00:15:07]} d5 {[%clk 00:15:08]}
{[%emt 00:00:04]} 4. cxd5 {[%clk 00:15:08]} {[%emt 00:00:05]} exd5 {[%clk
00:15:11]} 5. Bg5 {[%clk 00:15:12]} {[%emt 00:00:05]} c6 {[%clk 00:15:08]}
{[%emt 00:00:04]} 6. e3 {[%clk 00:15:15]} Be7 {[%clk 00:14:55]} {[%emt
00:00:33]} 7. Bd3 {[%clk 00:15:18]} Nbd7 {[%clk 00:14:42]} {[%emt 00:00:06]} 8.
Nge2 {[%clk 00:15:10]} {[%emt 00:00:10]} Nf8 {[%clk 00:14:44]} {[%emt
00:00:08]} 9. O-O {[%clk 00:15:12]} {[%emt 00:00:05]} Ne6 {[%clk 00:14:40]}
{[%emt 00:00:06]} 10. Bh4 {[%clk 00:15:16]} O-O {[%clk 00:14:34]} {[%emt
00:00:10]} 11. Qc2 {[%clk 00:15:18]} {[%emt 00:00:10]} h6 {[%clk 00:14:37]} 12.
Rad1 {[%clk 00:15:17]} Nh5 {[%clk 00:13:27]} {[%emt 00:01:15]} 13. Bxe7 {[%clk
00:15:08]} {[%emt 00:00:14]} Qxe7 {[%clk 00:13:32]} 14. Rfe1 {[%clk 00:15:11]}
{[%emt 00:00:06]} Rd8 {[%clk 00:13:14]} {[%emt 00:00:19]} 15. e4 {[%clk
00:15:01]} {[%emt 00:00:21]} dxe4 {[%clk 00:13:04]} {[%emt 00:00:10]} 16. Bxe4
{[%clk 00:14:58]} {[%emt 00:00:07]} Nf6 {[%clk 00:12:51]} {[%emt 00:00:19]} 17.
d5 {[%clk 00:14:06]} {[%emt 00:00:57]} Ng5 {[%clk 00:12:03]} {[%emt 00:00:52]}
18. Ng3 {[%clk 00:12:25]} {[%emt 00:01:47]} Nfxe4 {[%clk 00:08:45]} {[%emt
00:03:27]} 19. Ngxe4 {[%clk 00:11:34]} {[%emt 00:00:53]} Bf5 {[%clk 00:08:13]}
{[%emt 00:02:01]} 20. d6 {[%clk 00:10:46]} Qe5 {[%clk 00:07:52]} 21. h4 {[%clk
00:08:22]} {[%emt 00:02:23]} Nxe4 {[%clk 00:06:48]} {[%emt 00:01:12]} 22. Nxe4
{[%clk 00:08:26]} Rxd6 {[%clk 00:05:13]} {[%emt 00:01:38]} 23. Nxd6 {[%clk
00:08:01]} {[%emt 00:00:35]} Qxe1+ {[%clk 00:05:15]} 24. Rxe1 {[%clk 00:08:05]}
Bxc2 {[%clk 00:05:19]} {[%emt 00:00:05]} 25. Nxb7 {[%clk 00:08:07]} Kf8 {[%clk
00:05:07]} {[%emt 00:00:14]} 26. Na5 {[%clk 00:07:19]} {[%emt 00:00:54]} Rc8
{[%clk 00:04:59]} {[%emt 00:00:13]} 27. Re3 {[%clk 00:07:22]} Bf5 {[%clk
00:04:12]} {[%emt 00:00:53]} 28. Rc3 {[%clk 00:07:07]} {[%emt 00:00:20]} Be4
{[%clk 00:00:59]} {[%emt 00:03:19]} 29. a3 {[%clk 00:07:02]} {[%emt 00:00:09]}
Bd5 {[%clk 00:01:01]} {[%emt 00:00:07]} 30. b4 {[%clk 00:07:00]} {[%emt
00:00:09]} Ke7 {[%clk 00:01:05]} 31. f3 {[%clk 00:07:02]} Kd7 {[%clk 00:01:01]}
{[%emt 00:00:09]} 32. Kf2 {[%clk 00:07:02]} {[%emt 00:00:09]} Kc7 {[%clk
00:00:48]} {[%emt 00:00:12]} 33. Re3 {[%clk 00:06:55]} {[%emt 00:00:13]} Be6
{[%clk 00:00:44]} {[%emt 00:00:08]} 34. f4 {[%clk 00:06:49]} {[%emt 00:00:18]}
Rd8 {[%clk 00:00:37]} {[%emt 00:00:06]} 35. Rc3 {[%clk 00:06:33]} {[%emt
00:00:20]} Rd2+ {[%clk 00:00:38]} {[%emt 00:00:07]} 36. Ke3 {[%clk 00:06:33]}
{[%emt 00:00:05]} Rxg2 {[%clk 00:00:41]} 37. Rxc6+ {[%clk 00:06:25]} {[%emt
00:00:12]} Kd7 {[%clk 00:00:27]} {[%emt 00:00:20]} 38. Ra6 {[%clk 00:06:23]}
{[%emt 00:00:06]} Rg3+ {[%clk 00:00:31]} 39. Kd4 {[%clk 00:06:27]} {[%emt
00:00:06]} Rxa3 {[%clk 00:00:34]} {[%emt 00:00:04]} 40. Rxa7+ {[%clk 00:06:28]}
{[%emt 00:00:04]} Kc8 {[%clk 00:00:26]} {[%emt 00:00:08]} 41. b5 {[%clk
00:06:06]} {[%emt 00:00:30]} Ra1 {[%clk 00:00:12]} {[%emt 00:00:20]} 42. b6
{[%clk 00:05:38]} {[%emt 00:00:31]} Rb1 {[%clk 00:00:10]} {[%emt 00:00:18]} 43.
Rc7+ {[%emt 00:00:12]} Kd8 44. Nc6+ {[%clk 00:05:25]} Ke8 {[%clk 00:00:18]} 45.
b7 {[%clk 00:05:29]} 1-0

[Event "MČR 2022 rapid"]
[Site "Turnov, Czech Republic"]
[Date "2022.09.11"]
[Round "6.6"]
[White "Postupa, Pavel"]
[Black "Jansa, Vlastimil"]
[Result "0-1"]
[TimeControl "2x 15 min + 5s/move"]
[WhiteElo "2077"]
[BlackElo "2452"]

1. e4 {[%clk 00:15:07]} {[%emt 00:00:06]} c5 {[%clk 00:15:08]} {[%emt
00:00:05]} 2. Nf3 {[%clk 00:15:10]} e6 {[%clk 00:15:12]} 3. g3 {[%emt
00:00:06]} Nc6 {[%clk 00:15:04]} {[%emt 00:00:10]} 4. Bg2 {[%clk 00:15:13]} Nf6
{[%clk 00:15:06]} {[%emt 00:00:10]} 5. Qe2 {[%clk 00:15:16]} d5 {[%clk
00:14:39]} {[%emt 00:00:32]} 6. d3 {[%clk 00:15:13]} {[%emt 00:00:05]} Be7
{[%clk 00:14:39]} {[%emt 00:00:10]} 7. O-O {[%clk 00:15:11]} {[%emt 00:00:06]}
O-O {[%clk 00:14:41]} {[%emt 00:00:04]} 8. e5 {[%clk 00:15:00]} {[%emt
00:00:15]} Nd7 {[%clk 00:14:44]} 9. h4 {[%clk 00:15:03]} b5 {[%clk 00:14:19]}
{[%emt 00:00:31]} 10. Bf4 {[%clk 00:14:41]} {[%emt 00:00:27]} Bb7 {[%clk
00:14:19]} {[%emt 00:00:05]} 11. Re1 {[%clk 00:14:43]} {[%emt 00:00:04]} Nb6
{[%clk 00:13:57]} {[%emt 00:00:31]} 12. Nbd2 {[%clk 00:14:42]} {[%emt
00:00:05]} d4 {[%clk 00:13:48]} {[%emt 00:00:10]} 13. Ng5 {[%clk 00:14:09]}
{[%emt 00:00:42]} Nd5 {[%clk 00:13:22]} {[%emt 00:00:33]} 14. Nxh7 {[%clk
00:10:27]} {[%emt 00:03:42]} Kxh7 {[%clk 00:12:52]} {[%emt 00:00:37]} 15. Qh5+
{[%clk 00:09:07]} {[%emt 00:01:22]} Kg8 {[%clk 00:12:56]} 16. Be4 {[%clk
00:09:11]} {[%emt 00:00:05]} f5 {[%clk 00:12:46]} {[%emt 00:00:13]} 17. exf6
{[%clk 00:08:26]} {[%emt 00:00:48]} Nxf6 {[%clk 00:12:47]} {[%emt 00:00:05]} 18.
Qg6 {[%clk 00:08:25]} {[%emt 00:00:11]} Qe8 {[%clk 00:12:21]} {[%emt 00:01:23]}
19. Qxe8 {[%clk 00:08:01]} Raxe8 {[%clk 00:12:16]} 20. Bxc6 {[%clk 00:08:04]}
Bxc6 {[%clk 00:12:18]} 21. Rxe6 {[%clk 00:08:04]} {[%emt 00:00:09]} Bd5 {[%clk
00:11:10]} {[%emt 00:00:59]} 22. Ra6 {[%clk 00:07:40]} {[%emt 00:00:26]} Nh5
{[%clk 00:10:43]} {[%emt 00:00:32]} 23. Bc7 {[%clk 00:07:15]} {[%emt 00:01:16]}
Bd8 {[%clk 00:09:08]} {[%emt 00:00:58]} 24. Bxd8 {[%clk 00:07:12]} {[%emt
00:00:07]} Rxd8 {[%clk 00:09:11]} {[%emt 00:00:04]} 25. Rxa7 {[%clk 00:07:07]}
{[%emt 00:00:09]} Rde8 {[%clk 00:09:00]} {[%emt 00:00:12]} 26. Ne4 {[%clk
00:06:23]} {[%emt 00:00:49]} Bxe4 {[%clk 00:08:58]} {[%emt 00:00:07]} 27. dxe4
{[%clk 00:06:26]} Rxe4 {[%clk 00:08:59]} {[%emt 00:00:10]} 28. Rb7 {[%clk
00:06:22]} {[%emt 00:00:05]} Re2 {[%clk 00:08:45]} {[%emt 00:00:19]} 29. Rf1
{[%clk 00:06:21]} {[%emt 00:00:06]} Rxc2 {[%clk 00:08:07]} {[%emt 00:00:43]} 30.
Rxb5 {[%clk 00:06:16]} {[%emt 00:00:10]} d3 {[%clk 00:08:01]} {[%emt 00:00:10]}
31. b4 {[%clk 00:04:17]} {[%emt 00:04:39]} Nxg3 {[%clk 00:07:24]} 32. fxg3
{[%clk 00:02:08]} {[%emt 00:00:22]} Rxf1+ {[%clk 00:07:17]} {[%emt 00:00:11]}
33. Kxf1 {[%clk 00:02:12]} {[%emt 00:00:06]} Rc1+ {[%clk 00:07:20]} 34. Kf2
{[%clk 00:02:16]} d2 {[%clk 00:07:25]} {[%emt 00:00:05]} 35. Rb8+ {[%clk
00:02:19]} Kh7 {[%clk 00:07:29]} 36. Rd8 {[%clk 00:02:15]} {[%emt 00:00:05]}
d1=Q {[%clk 00:07:31]} {[%emt 00:00:06]} 37. Rxd1 {[%clk 00:02:19]} Rxd1 {[%clk
00:07:35]} {[%emt 00:00:14]} 38. bxc5 {[%clk 00:02:11]} Rc1 {[%clk 00:07:25]}
{[%emt 00:00:16]} 0-1

[Event "MČR 2022 rapid"]
[Site "Turnov, Czech Republic"]
[Date "2022.09.11"]
[Round "6.7"]
[White "Červený, Martin"]
[Black "Šindler, Michal"]
[Result "1/2-1/2"]
[TimeControl "2x 15 min + 5s/move"]
[WhiteElo "2413"]
[BlackElo "2166"]

1. d4 {[%clk 00:15:09]} {[%emt 00:00:05]} Nf6 {[%clk 00:15:08]} 2. c4 {[%clk
00:15:12]} {[%emt 00:00:04]} g6 {[%clk 00:15:12]} 3. Nc3 {[%clk 00:15:16]} Bg7
{[%clk 00:15:16]} {[%emt 00:00:05]} 4. Bg5 {[%clk 00:15:08]} {[%emt 00:00:08]}
d6 {[%clk 00:15:11]} {[%emt 00:00:11]} 5. e3 {[%clk 00:15:11]} c5 {[%clk
00:15:04]} {[%emt 00:00:14]} 6. Nf3 {[%clk 00:14:05]} {[%emt 00:01:14]} cxd4
{[%clk 00:15:05]} 7. exd4 {[%clk 00:14:08]} {[%emt 00:00:05]} O-O {[%clk
00:15:03]} {[%emt 00:00:05]} 8. Be2 {[%clk 00:14:12]} {[%emt 00:00:05]} Nbd7
{[%clk 00:13:59]} {[%emt 00:01:04]} 9. O-O {[%clk 00:14:12]} {[%emt 00:00:06]}
h6 {[%clk 00:13:31]} {[%emt 00:00:31]} 10. Bh4 {[%clk 00:14:10]} {[%emt
00:00:07]} Nb6 {[%clk 00:12:44]} {[%emt 00:00:52]} 11. Rc1 {[%clk 00:13:54]}
{[%emt 00:00:21]} Bf5 {[%clk 00:12:27]} {[%emt 00:00:22]} 12. Re1 {[%clk
00:13:37]} {[%emt 00:00:27]} g5 {[%clk 00:12:21]} {[%emt 00:00:06]} 13. Bg3
{[%emt 00:00:10]} Nh5 {[%clk 00:12:20]} 14. c5 {[%clk 00:12:48]} {[%emt
00:00:55]} Nxg3 {[%clk 00:12:07]} {[%emt 00:00:18]} 15. hxg3 {[%clk 00:12:51]}
{[%emt 00:00:11]} Nd7 {[%clk 00:11:06]} {[%emt 00:00:57]} 16. b4 {[%clk
00:12:40]} {[%emt 00:00:21]} a5 {[%clk 00:10:48]} {[%emt 00:00:19]} 17. a3
{[%clk 00:12:43]} {[%emt 00:00:06]} axb4 {[%clk 00:10:15]} {[%emt 00:00:36]} 18.
axb4 {[%clk 00:12:47]} Nf6 {[%clk 00:10:04]} {[%emt 00:00:15]} 19. Bd3 {[%clk
00:10:58]} {[%emt 00:01:58]} Bxd3 {[%clk 00:09:45]} {[%emt 00:00:19]} 20. Qxd3
{[%clk 00:11:01]} {[%emt 00:00:10]} dxc5 {[%clk 00:09:48]} 21. bxc5 {[%clk
00:11:05]} e6 {[%clk 00:09:22]} {[%emt 00:00:35]} 22. Rb1 {[%clk 00:10:51]}
{[%emt 00:00:29]} Nd5 {[%clk 00:07:45]} {[%emt 00:01:23]} 23. Rb3 {[%clk
00:09:27]} {[%emt 00:01:32]} Nxc3 {[%clk 00:07:41]} {[%emt 00:00:06]} 24. Qxc3
{[%clk 00:09:29]} {[%emt 00:00:10]} Qd5 {[%clk 00:07:24]} {[%emt 00:00:14]} 25.
Reb1 {[%clk 00:08:14]} {[%emt 00:01:21]} Ra7 {[%clk 00:06:58]} {[%emt
00:00:36]} 26. Rb4 {[%clk 00:06:24]} {[%emt 00:01:50]} Rd8 {[%clk 00:06:49]}
{[%emt 00:00:18]} 27. Ne5 {[%clk 00:05:45]} {[%emt 00:00:40]} Bxe5 {[%clk
00:06:14]} {[%emt 00:00:45]} 28. dxe5 {[%clk 00:05:48]} Ra5 {[%clk 00:05:52]}
{[%emt 00:00:23]} 29. Rc1 {[%clk 00:05:20]} {[%emt 00:00:37]} Rc8 {[%clk
00:05:36]} {[%emt 00:00:18]} 30. Rc4 {[%clk 00:05:17]} {[%emt 00:00:09]} Rb5
{[%clk 00:05:14]} {[%emt 00:00:27]} 31. Qe3 {[%clk 00:05:01]} {[%emt 00:00:25]}
Rd8 {[%clk 00:04:46]} {[%emt 00:00:32]} 32. Kh2 {[%clk 00:04:32]} {[%emt
00:00:33]} Rb2 {[%clk 00:04:30]} {[%emt 00:00:18]} 33. R4c2 {[%clk 00:03:25]}
{[%emt 00:01:21]} Rxc2 {[%clk 00:04:24]} {[%emt 00:00:16]} 34. Rxc2 {[%clk
00:03:29]} Qd1 {[%clk 00:04:12]} {[%emt 00:00:05]} 35. Rc1 {[%clk 00:03:13]}
{[%emt 00:00:25]} Qd2 {[%clk 00:04:00]} {[%emt 00:00:13]} 36. Qxd2 {[%clk
00:03:02]} {[%emt 00:00:15]} Rxd2 {[%clk 00:04:04]} {[%emt 00:00:05]} 37. f4
{[%clk 00:03:02]} {[%emt 00:00:05]} Kg7 {[%clk 00:04:04]} {[%emt 00:00:04]} 38.
Rb1 {[%clk 00:02:53]} {[%emt 00:00:12]} Rc2 {[%clk 00:03:58]} {[%emt 00:00:14]}
39. Rxb7 {[%clk 00:02:56]} Rxc5 {[%clk 00:04:02]} 40. Kh3 {[%clk 00:02:59]}
{[%emt 00:00:10]} Kg6 {[%clk 00:03:58]} 41. Ra7 {[%clk 00:02:50]} {[%emt
00:00:15]} Rc4 {[%clk 00:03:39]} {[%emt 00:00:28]} 42. Kg4 {[%clk 00:02:26]}
{[%emt 00:00:31]} Rc2 {[%clk 00:03:21]} {[%emt 00:00:16]} 43. Kh3 {[%clk
00:02:26]} {[%emt 00:00:11]} Rf2 {[%clk 00:03:12]} {[%emt 00:00:08]} 44. fxg5
{[%clk 00:02:06]} {[%emt 00:00:26]} hxg5 {[%clk 00:03:15]} 45. g4 {[%clk
00:02:06]} {[%emt 00:00:18]} Rb2 {[%clk 00:02:41]} {[%emt 00:00:26]} 46. Ra5
{[%clk 00:02:02]} {[%emt 00:00:08]} Rb4 {[%clk 00:02:23]} {[%emt 00:00:23]} 47.
g3 {[%clk 00:02:02]} {[%emt 00:00:06]} Kg7 {[%clk 00:02:24]} {[%emt 00:00:09]}
48. Rc5 {[%clk 00:02:01]} {[%emt 00:00:09]} Rd4 {[%clk 00:02:22]} 49. Ra5
{[%clk 00:02:03]} {[%emt 00:00:05]} Rd2 {[%clk 00:01:58]} {[%emt 00:00:26]} 50.
Rb5 {[%clk 00:02:00]} {[%emt 00:00:08]} Kf8 {[%clk 00:01:59]} {[%emt 00:00:10]}
51. Rb8+ {[%clk 00:02:03]} Kg7 {[%clk 00:01:58]} {[%emt 00:00:06]} 52. Rg8+
{[%emt 00:00:31]} Rd5 {[%emt 00:00:05]} 1/2-1/2